bitfinex-derivatives/quotes_ETHF0:USTF0_20240917
["timestamp","ask_amount","ask_price","bid_price","bid_amount"]
[1726577339874,3.2078,2314.8,2314.7,1.1952]
[1726577340074,3.63982,2314.8,2314.7,1.1952]
[1726577340977,3.2078,2314.8,2314.7,1.1952]
[1726577341374,3.63982,2314.8,2314.7,1.1952]
[1726577342385,3.2078,2314.8,2314.7,1.1952]
[1726577342781,3.63982,2314.8,2314.7,1.1952]
[1726577343880,3.2078,2314.8,2314.7,1.1952]
[1726577344878,3.63982,2314.8,2314.7,1.1952]
[1726577345281,3.2078,2314.8,2314.7,1.1952]
[1726577345582,3.77992,2315.1,2314.7,5.5152]
[1726577345790,0.43201,2314.9,2314.7,1.1952]
[1726577345976,1.07996,2315.0,2314.7,1.1952]
[1726577345977,0.43199,2315.0,2314.7,1.1952]
[1726577346177,3.2078,2315.2,2314.8,1.67201]
[1726577346488,3.2078,2315.2,2314.7,5.5152]
[1726577346489,3.2078,2315.2,2315.0,1.67198]
[1726577346786,3.63974,2315.2,2315.1,1.2385]
[1726577347186,3.2078,2315.2,2315.1,1.2385]
[1726577347382,0.43193,2315.3,2315.1,1.2385]
[1726577348090,0.43194,2315.2,2315.1,1.2385]
[1726577348286,0.43194,2315.3,2315.1,1.2385]
[1726577348491,0.43194,2315.2,2315.1,1.2385]
[1726577349988,0.43193,2315.3,2315.1,1.2385]
[1726577350490,0.43191,2315.4,2315.2,4.3192]
[1726577350687,3.2078,2315.5,2315.2,4.3192]
[1726577350997,0.43191,2315.4,2315.1,4.37045]
[1726577352980,0.43191,2315.4,2315.1,3.9385]
[1726577353183,3.2078,2315.5,2315.1,3.9385]
[1726577353184,3.6397,2315.5,2315.1,3.9385]
[1726577353387,3.6397,2315.5,2315.3,3.13192]
[1726577353388,3.63969,2315.5,2315.3,3.13192]
[1726577353695,0.43194,2315.3,2315.1,3.9385]
[1726577353993,0.43192,2315.4,2315.2,0.43194]
[1726577354191,0.43193,2315.3,2315.1,4.37045]
[1726577354588,0.43193,2315.3,2315.2,4.3192]
[1726577354791,0.43192,2315.4,2315.2,4.75114]
[1726577355088,0.43192,2315.4,2315.2,0.43194]
[1726577355289,0.43192,2315.4,2315.1,3.9385]
[1726577355290,1.07978,2315.4,2315.1,3.9385]
[1726577355491,0.43194,2315.2,2315.1,3.9385]
[1726577355698,0.43194,2315.3,2315.1,4.37046]
[1726577356283,4.28755,2315.5,2315.1,4.37046]
[1726577356488,0.43192,2315.4,2315.1,4.37046]
[1726577356688,0.43193,2315.3,2315.1,4.37046]
[1726577357186,0.43193,2315.3,2315.2,4.3192]
[1726577358495,0.43192,2315.4,2315.2,4.75114]
[1726577358798,0.43192,2315.4,2315.1,4.37045]
[1726577358999,0.43193,2315.3,2315.1,4.37045]
[1726577359187,1.07973,2315.5,2315.1,3.9385]
[1726577359390,0.43193,2315.3,2315.1,3.9385]
[1726577359587,0.4319,2315.5,2315.3,0.43193]
[1726577359788,0.4319,2315.5,2315.4,0.3859]
[1726577359988,0.43189,2315.6,2315.4,3.51779]
[1726577360284,0.43189,2315.6,2315.5,0.799]
[1726577360697,0.43189,2315.6,2315.5,5.1174]
[1726577362900,0.43189,2315.6,2315.5,0.799]
[1726577363706,0.43187,2315.7,2315.5,0.799]
[1726577364006,0.43185,2315.7,2315.5,0.799]
[1726577364393,0.43184,2315.8,2315.5,1.23088]
[1726577364600,0.43186,2315.7,2315.5,0.799]
[1726577366893,0.43187,2315.6,2315.5,0.799]
[1726577367302,0.43187,2315.7,2315.5,0.799]
[1726577367901,0.43187,2315.7,2315.5,1.23089]
[1726577368499,0.43187,2315.7,2315.5,0.799]
[1726577369407,0.43187,2315.6,2315.5,0.799]
[1726577370213,0.43187,2315.7,2315.5,0.799]
[1726577371413,0.43187,2315.7,2315.5,1.23089]
[1726577371711,0.43183,2315.8,2315.6,0.43187]
[1726577371912,3.2078,2315.9,2315.5,0.799]
[1726577371913,3.2078,2315.9,2315.7,1.6523]
[1726577372110,0.43183,2315.8,2315.7,1.6523]
[1726577372311,3.2078,2315.9,2315.7,1.6523]
[1726577372519,3.63962,2315.9,2315.7,2.08414]
[1726577372907,0.43183,2315.8,2315.7,2.08414]
[1726577373511,0.43183,2315.8,2315.7,1.6523]
[1726577373909,0.43183,2315.8,2315.7,0.4123]
[1726577374109,1.51142,2315.8,2315.7,0.4123]
[1726577374317,0.43183,2315.8,2315.7,0.4123]
[1726577378214,3.63963,2315.9,2315.7,0.4123]
[1726577378518,0.43183,2315.8,2315.7,0.4123]
[1726577378815,3.63962,2315.9,2315.7,0.4123]
[1726577379020,3.63962,2315.9,2315.7,2.08415]
[1726577379211,3.2078,2315.9,2315.7,1.6523]
[1726577379406,3.2078,2315.9,2315.8,0.43183]
[1726577380218,3.2078,2315.9,2315.8,4.75023]
[1726577381014,3.63961,2315.9,2315.8,4.75023]
[1726577381210,3.2078,2315.9,2315.8,4.75023]
[1726577382218,0.43183,2315.8,2315.7,0.4123]
[1726577382519,1.51142,2315.8,2315.7,0.4123]
[1726577383420,0.43183,2315.8,2315.7,0.4123]
[1726577385221,3.2078,2315.9,2315.7,0.4123]
[1726577385514,3.63963,2315.9,2315.7,0.84415]
[1726577385818,3.2078,2315.9,2315.8,1.67183]
[1726577387215,3.63961,2315.9,2315.8,1.67183]
[1726577388027,3.63961,2315.9,2315.8,0.43183]
[1726577388410,3.2078,2315.9,2315.8,0.43183]
[1726577388619,3.63961,2315.9,2315.8,0.43183]
[1726577392817,0.43183,2315.8,2315.7,3.1123]
[1726577393022,0.43183,2315.8,2315.7,0.4123]
[1726577393816,0.43183,2315.9,2315.8,0.43182]
[1726577394023,0.43183,2315.9,2315.8,0.43183]
[1726577394223,0.43183,2315.8,2315.7,4.66812759]
[1726577394820,0.43183,2315.8,2315.7,1.53628759]
[1726577395024,0.43183,2315.8,2315.7,1.96813759]
[1726577395221,0.43183,2315.9,2315.8,0.43183]
[1726577396325,0.43183,2315.8,2315.7,4.66811759]
[1726577396529,0.43183,2315.8,2315.7,6.3923968]
[1726577396831,0.43183,2315.9,2315.8,0.43183]
[1726577397024,0.43181,2315.9,2315.8,1.55581759]
[1726577397330,0.43181,2315.9,2315.8,0.43183]
[1726577397729,1.0795,2316.0,2315.7,4.23628759]
[1726577398230,0.43183,2315.9,2315.8,0.43183]
[1726577400126,1.07946,2316.1,2315.7,4.23628759]
[1726577400425,0.43181,2316.0,2315.9,3.13181]
[1726577400624,0.43178,2316.1,2316.0,0.83669]
[1726577400825,34.09265,2316.2,2316.0,0.4049]
[1726577400826,33.44501,2316.2,2316.0,0.4049]
[1726577401028,33.44501,2316.2,2316.1,2.7]
[1726577401324,33.44501,2316.2,2316.1,3.13178]
[1726577402137,33.44501,2316.2,2316.1,2.7]
[1726577403028,33.44501,2316.2,2316.1,3.13178]
[1726577403231,33.01324,2316.2,2316.1,2.7]
[1726577403433,33.01324,2316.2,2316.1,3.13178]
[1726577404042,33.445,2316.2,2316.1,3.13178]
[1726577404233,33.01324,2316.2,2316.1,3.13178]
[1726577404435,33.445,2316.2,2316.1,3.13178]
[1726577404737,33.445,2316.2,2316.1,7.44938]
[1726577405131,33.01324,2316.2,2316.1,7.44938]
[1726577405331,33.445,2316.2,2316.1,7.44938]
[1726577405730,33.01324,2316.2,2316.1,7.44938]
[1726577407328,33.445,2316.2,2316.1,7.44938]
[1726577407939,33.445,2316.2,2316.1,3.13178]
[1726577408236,33.445,2316.2,2316.1,7.44938]
[1726577409738,33.445,2316.2,2316.1,8.57336759]
[1726577410034,33.445,2316.2,2316.1,7.11336759]
[1726577410239,33.445,2316.2,2316.1,5.98938]
[1726577410943,33.445,2316.2,2316.1,1.67178]
[1726577411738,34.5244,2316.2,2316.1,1.24]
[1726577411935,0.43178,2316.1,2316.0,1.6449]
[1726577412138,0.43178,2316.1,2316.0,0.4049]
[1726577412440,0.43178,2316.1,2316.0,2.0767]
[1726577412636,33.44502,2316.2,2316.1,0.43178]
[1726577412829,33.01324,2316.2,2316.1,0.43178]
[1726577413029,33.01324,2316.2,2316.1,4.74938]
[1726577414039,33.445,2316.2,2316.1,4.74938]
[1726577414634,33.445,2316.2,2316.1,0.43178]
[1726577415942,33.445,2316.2,2316.1,1.55576759]
[1726577417139,34.5244,2316.2,2316.1,1.12398759]
[1726577417341,1.51123,2316.1,2316.0,1.12398759]
[1726577417534,0.4318,2316.0,2315.9,0.4186]
[1726577418247,0.86639,2316.1,2315.9,2.09041]
[1726577418541,0.4318,2316.0,2315.9,0.4186]
[1726577418944,0.86639,2316.1,2315.9,2.09041]
[1726577419139,0.4318,2316.0,2315.9,1.6586]
[1726577419333,0.4318,2316.0,2315.9,2.78258759]
[1726577419747,0.4318,2316.0,2315.9,1.6586]
[1726577420835,0.4318,2316.0,2315.9,2.78258759]
[1726577421040,0.4318,2316.0,2315.9,1.6586]
[1726577422138,0.43181,2315.9,2315.8,1.69222273]
[1726577422340,0.4318,2316.0,2315.8,3.30085716]
[1726577422639,0.4318,2316.0,2315.8,1.55861889]
[1726577423752,0.4318,2316.0,2315.9,1.24]
[1726577425947,0.43181,2316.0,2315.8,1.24]
[1726577426553,0.8664,2316.1,2315.9,0.43181]
[1726577426735,33.01324,2316.2,2316.0,2.07579]
[1726577427043,33.445,2316.2,2316.1,0.4]
[1726577428233,33.01324,2316.2,2316.1,0.83178]
[1726577428640,33.01324,2316.2,2316.1,5.83978]
[1726577429449,33.01324,2316.2,2316.1,6.96656889]
[1726577430746,33.01324,2316.2,2316.1,5.83978]
[1726577430943,33.01324,2316.2,2316.1,9.2751657]
[1726577432848,33.01324,2316.2,2316.1,7.53200273]
[1726577433349,33.01324,2316.2,2316.1,5.83978]
[1726577435553,33.01324,2316.2,2316.1,1.52218]
[1726577436050,33.01324,2316.2,2316.1,5.83978]
[1726577437354,33.01324,2316.2,2316.1,9.271467]
[1726577437751,33.01324,2316.2,2316.1,7.5289687]
[1726577438354,33.01324,2316.2,2316.1,5.83978]
[1726577440247,34.5244,2316.2,2316.1,5.408]
[1726577440449,34.5244,2316.2,2316.1,2.3304]
[1726577441262,33.445,2316.2,2316.1,2.76218]
[1726577443655,34.5244,2316.2,2316.1,1.24]
[1726577443857,35.2243,2316.2,2316.1,1.24]
[1726577444062,34.1449,2316.2,2315.9,1.8451889]
[1726577444255,0.4318,2316.0,2315.8,1.24]
[1726577444557,0.4318,2316.0,2315.9,1.67181]
[1726577444855,0.4318,2316.0,2315.9,1.24]
[1726577445258,0.4318,2316.0,2315.9,1.67181]
[1726577445459,1.15859,2316.1,2315.9,1.67181]
[1726577445759,1.15859,2316.1,2316.0,1.9377]
[1726577445962,1.15859,2316.1,2316.0,2.6588]
[1726577446260,0.43179,2316.1,2316.0,2.6588]
[1726577446858,0.43179,2316.1,2316.0,3.3917]
[1726577447153,0.43179,2316.1,2316.0,4.9498889]
[1726577447354,0.43179,2316.1,2316.0,3.3917]
[1726577447556,0.43179,2316.1,2316.0,4.5180889]
[1726577447861,0.43179,2316.1,2316.0,3.3917]
[1726577448055,0.43179,2316.1,2316.0,3.8235]
[1726577448252,34.14492,2316.2,2316.0,7.25774649]
[1726577448557,34.14492,2316.2,2316.1,1.12701682]
[1726577451158,0.43178,2316.1,2316.0,3.78581682]
[1726577451363,34.14491,2316.2,2316.0,5.96256767]
[1726577451658,0.43178,2316.1,2316.0,2.36701682]
[1726577451854,0.43178,2316.1,2316.0,4.1119135]
[1726577452158,0.43178,2316.1,2316.0,2.36701682]
[1726577452360,0.43178,2316.1,2316.0,4.11200747]
[1726577452565,0.43178,2316.1,2316.0,4.11202211]
[1726577453356,0.43178,2316.1,2316.0,4.67458864]
[1726577453557,0.43178,2316.1,2316.0,4.11211889]
[1726577453761,0.43178,2316.1,2316.0,2.3671136]
[1726577454070,0.43178,2316.1,2316.0,1.24]
[1726577455267,1.51123,2316.1,2316.0,1.24]
[1726577455666,0.43178,2316.1,2316.0,1.24]
[1726577456360,33.71314,2316.2,2316.0,1.6718]
[1726577456361,34.14491,2316.2,2316.0,1.6718]
[1726577457063,0.43178,2316.1,2316.0,1.6718]
[1726577457366,0.43178,2316.1,2316.0,1.24]
[1726577457860,0.43178,2316.1,2316.0,1.9377]
[1726577458760,0.43178,2316.1,2316.0,2.3695]
[1726577458961,1.51123,2316.1,2316.0,1.9377]
[1726577459464,1.51123,2316.1,2316.0,2.3695]
[1726577459465,0.43178,2316.1,2316.0,2.3695]
[1726577459661,33.71314,2316.2,2316.0,2.3695]
[1726577459862,0.43178,2316.1,2316.0,2.3695]
[1726577460161,1.51123,2316.1,2316.0,1.9377]
[1726577460466,0.43178,2316.1,2316.0,2.3695]
[1726577460667,0.43178,2316.1,2316.0,1.9377]
[1726577461167,1.51123,2316.1,2316.0,4.67530848]
[1726577461563,1.51123,2316.1,2316.0,2.367316]
[1726577461763,1.51123,2316.1,2316.0,4.11244453]
[1726577461959,1.51123,2316.1,2316.0,2.367316]
[1726577462263,0.43178,2316.1,2316.0,2.367316]
[1726577462969,1.51123,2316.1,2316.0,2.367316]
[1726577463565,1.51123,2316.1,2316.0,1.24]
[1726577463767,0.43178,2316.1,2316.0,2.367316]
[1726577464664,1.51123,2316.1,2316.0,1.127316]
[1726577464863,0.4318,2316.0,2315.9,2.36743292]
[1726577465167,0.4318,2316.0,2315.9,4.11279784]
[1726577465672,1.5113,2316.0,2315.9,4.11279784]
[1726577465867,1.5113,2316.0,2315.9,1.12743292]
[1726577465868,2.2137,2316.0,2315.9,1.12743292]
[1726577466068,2.2137,2316.0,2315.9,2.36743292]
[1726577466376,2.2137,2316.0,2315.9,4.11342018]
[1726577466575,2.2137,2316.0,2315.9,4.11345551]
[1726577466770,2.2137,2316.0,2315.9,1.12743292]
[1726577467075,0.4318,2316.0,2315.9,2.36743292]
[1726577467373,34.79255,2316.2,2315.9,4.54525111]
[1726577467676,34.1449,2316.2,2316.1,1.24]
[1726577468174,34.1449,2316.2,2316.1,2.0056]
[1726577468471,34.1449,2316.2,2316.1,2.718]
[1726577468773,35.2243,2316.2,2316.1,2.718]
[1726577469864,34.1449,2316.2,2316.1,2.718]
[1726577470873,35.2243,2316.2,2316.1,2.718]
[1726577471268,1.51123,2316.1,2316.0,1.24]
[1726577471668,0.4318,2316.0,2315.8,3.78253292]
[1726577471874,0.43181,2316.0,2315.9,1.12743292]
[1726577472475,0.43181,2316.0,2315.9,2.36743292]
[1726577473271,0.43179,2316.1,2315.9,3.54734292]
[1726577473672,0.4318,2316.0,2315.9,3.11553292]
[1726577473873,0.43179,2316.1,2315.9,3.54734292]
[1726577474075,0.43179,2316.1,2316.0,1.24]
[1726577474280,33.01324,2316.2,2316.1,0.43178]
[1726577474574,33.01324,2316.2,2316.1,3.86845497]
[1726577476179,33.01324,2316.2,2316.1,0.43178]
[1726577477475,33.445,2316.2,2316.1,0.43178]
[1726577479274,33.01324,2316.2,2316.1,0.43178]
[1726577480480,33.445,2316.2,2316.1,0.43178]
[1726577481072,0.43178,2316.1,2316.0,1.24]
[1726577481276,0.4318,2316.0,2315.9,2.41991]
[1726577481686,0.4318,2316.0,2315.9,1.9881]
[1726577483082,1.5113,2316.0,2315.9,1.9881]
[1726577483279,0.4318,2316.0,2315.9,1.9881]
[1726577484184,0.4318,2316.0,2315.9,5.42594334]
[1726577484385,0.4318,2316.0,2315.9,4.86381722]
[1726577484576,0.4318,2316.0,2315.9,5.42594334]
[1726577485879,0.4318,2316.0,2315.9,4.86400171]
[1726577485880,1.5113,2316.0,2315.9,4.86400171]
[1726577486081,0.4318,2316.0,2315.9,2.87588477]
[1726577486286,1.1319,2316.0,2315.9,1.12841543]
[1726577486990,1.1319,2316.0,2315.9,2.87634181]
[1726577487286,1.1319,2316.0,2315.9,1.12841543]
[1726577487483,1.1319,2316.0,2315.9,2.87628096]
[1726577487875,1.1319,2316.0,2315.9,4.11628096]
[1726577488278,0.7001,2316.0,2315.9,4.54809096]
[1726577488479,0.43178,2316.1,2315.9,4.67823953]
[1726577488681,0.43178,2316.1,2316.0,1.12831588]
[1726577488886,0.4318,2316.0,2315.9,2.36831588]
[1726577489078,34.09265,2316.2,2315.9,4.11633702]
[1726577489387,0.43178,2316.1,2316.0,1.12842842]
[1726577489584,33.44501,2316.2,2316.0,3.13342842]
[1726577489789,0.43178,2316.1,2316.0,3.13342842]
[1726577490189,0.43178,2316.1,2316.0,4.88190706]
[1726577490492,0.43178,2316.1,2316.0,3.13342842]
[1726577491287,0.43178,2316.1,2316.0,2.005]
[1726577492488,1.51123,2316.1,2316.0,0.765]
[1726577492691,0.43181,2315.9,2315.8,1.4151]
[1726577492986,0.43181,2315.9,2315.5,4.43722842]
[1726577492987,0.43187,2315.6,2315.5,4.43722842]
[1726577493180,0.43189,2315.5,2315.3,3.84812842]
[1726577493585,0.43193,2315.3,2315.2,1.88172842]
[1726577493800,0.43193,2315.3,2315.2,0.7533]
[1726577493986,0.752,2315.6,2315.2,1.18524]
[1726577494282,0.43192,2315.4,2315.2,3.4533]
[1726577494684,0.43193,2315.3,2315.2,3.4533]
[1726577494888,0.43192,2315.4,2315.2,3.4533]
[1726577495084,1.07973,2315.5,2315.2,3.4533]
[1726577495085,0.43193,2315.3,2315.2,3.4533]
[1726577496394,0.43192,2315.4,2315.2,3.88524]
[1726577496589,0.43192,2315.4,2315.2,3.4533]
[1726577496794,1.83168,2315.6,2315.2,3.88524]
[1726577497006,1.07973,2315.5,2315.2,3.4533]
[1726577497292,0.752,2315.6,2315.2,3.4533]
[1726577497493,0.43191,2315.5,2315.4,2.7]
[1726577497788,0.43189,2315.6,2315.4,3.1319]
[1726577497988,3.2078,2315.7,2315.5,1.18248]
[1726577497989,0.43186,2315.7,2315.5,1.18248]
[1726577498185,0.43186,2315.7,2315.6,3.4186]
[1726577498986,2.1863,2315.9,2315.6,3.4186]
[1726577499191,0.43185,2315.7,2315.6,3.4186]
[1726577500289,0.43187,2315.6,2315.5,4.2108]
[1726577502488,1.07959,2315.8,2315.5,4.64268]
[1726577502689,1.07959,2315.8,2315.5,4.2108]
[1726577502893,0.43187,2315.6,2315.5,4.2108]
[1726577503794,0.43187,2315.6,2315.5,5.33922842]
[1726577503990,0.43187,2315.6,2315.5,4.2108]
[1726577504489,0.43187,2315.6,2315.5,5.33922842]
[1726577504691,0.43187,2315.6,2315.5,4.2108]
[1726577508792,0.43187,2315.6,2315.5,4.64269]
[1726577509200,0.43187,2315.6,2315.5,4.2108]
[1726577510295,0.43184,2315.8,2315.6,0.43187]
[1726577510491,3.2078,2316.0,2315.7,0.43184]
[1726577510492,4.2873,2316.0,2315.7,0.43184]
[1726577510690,0.43181,2315.9,2315.8,0.7008]
[1726577511392,4.75021,2315.9,2315.8,0.7008]
[1726577512497,5.82975,2315.9,2315.8,0.7008]
[1726577512692,4.75021,2315.9,2315.8,0.7008]
[1726577513195,0.43181,2315.9,2315.8,0.7008]
[1726577513389,4.75021,2315.9,2315.8,0.7008]
[1726577514194,0.43181,2315.9,2315.8,0.7008]
[1726577515187,4.2873,2316.0,2315.8,3.4008]
[1726577515188,3.2078,2316.0,2315.8,3.4008]
[1726577515396,3.6396,2316.0,2315.9,0.7034]
[1726577516898,4.7191,2316.0,2315.9,0.7034]
[1726577518401,3.6396,2316.0,2315.9,0.7034]
[1726577519392,1.84325,2316.1,2315.9,0.7034]
[1726577519393,0.43179,2316.1,2315.9,0.7034]
[1726577519595,34.1512,2316.2,2316.0,2.7]
[1726577519808,34.1512,2316.2,2316.1,0.7413]
[1726577519993,33.01324,2316.2,2316.1,1.4649]
[1726577520511,33.445,2316.2,2316.1,1.4649]
[1726577520695,33.01324,2316.2,2316.1,1.4649]
[1726577520896,33.445,2316.2,2316.1,1.4649]
[1726577521507,37.33084,2316.2,2315.8,1.12842842]
[1726577521698,1.19799,2316.1,2315.8,1.82892842]
[1726577522203,0.4318,2316.0,2315.8,4.52892842]
[1726577522402,33.01324,2316.2,2315.8,4.52892842]
[1726577522596,33.44501,2316.2,2316.0,2.7]
[1726577522796,33.44501,2316.2,2315.9,3.82842842]
[1726577523002,33.01324,2316.2,2315.9,4.26023842]
[1726577523193,33.01324,2316.2,2316.0,0.7491]
[1726577523398,34.49024,2316.2,2316.0,0.7491]
[1726577524197,33.73214,2316.2,2316.1,2.7]
[1726577524395,33.01324,2316.2,2316.1,2.7]
[1726577524701,33.01324,2316.2,2316.0,1.87752842]
[1726577524905,33.01324,2316.2,2316.0,0.7491]
[1726577524906,33.73544,2316.2,2316.0,0.7491]
[1726577525998,34.1672,2316.2,2316.0,0.7491]
[1726577526204,0.43179,2316.1,2315.9,1.82782842]
[1726577526699,0.43178,2316.1,2315.9,1.82782842]
[1726577527091,1.14648,2316.1,2315.9,1.82782842]
[1726577527303,1.14648,2316.1,2315.9,0.6994]
[1726577527502,0.43178,2316.1,2315.9,0.6994]
[1726577527702,0.43178,2316.1,2315.9,3.3994]
[1726577528301,34.1672,2316.2,2315.9,4.52782842]
[1726577528505,33.01324,2316.2,2315.9,3.83121]
[1726577529007,33.01324,2316.2,2316.1,2.7]
[1726577529206,33.01324,2316.2,2316.1,3.13178]
[1726577530808,33.01324,2316.2,2316.1,7.44938]
[1726577536604,33.01324,2316.2,2316.1,8.57780842]
[1726577536605,32.36527887,2316.2,2316.1,8.57780842]
[1726577536803,32.36527887,2316.2,2316.1,13.5314326]
[1726577537113,32.36527887,2316.2,2316.1,14.83157818]
[1726577538909,32.36527887,2316.2,2316.1,13.085754]
[1726577539119,32.36527887,2316.2,2316.1,21.90759784]
[1726577541303,17.40134459,2316.2,2316.1,28.15551823]
[1726577541504,13.38430953,2316.2,2316.1,32.2016559]
[1726577541705,12.23090953,2316.2,2316.1,32.2016559]
[1726577541905,7.61730953,2316.2,2316.1,29.38436589]
[1726577542101,5.02850953,2316.2,2316.1,32.19410397]
[1726577542311,4.77650953,2316.2,2316.1,32.19410397]
[1726577542514,1.18358953,2316.2,2316.1,32.19410397]
[1726577543613,1.18358953,2316.2,2316.1,31.63134255]
[1726577544220,4.152,2316.6,2316.5,0.4317]
[1726577544408,4.152,2316.6,2316.5,3.1317]
[1726577544611,4.152,2316.6,2316.5,7.4485]
[1726577546422,0.7658,2316.6,2316.5,3.1317]
[1726577546718,1.5188,2316.6,2316.5,3.1317]
[1726577547515,1.5188,2316.6,2316.5,6.3395]
[1726577548024,1.5188,2316.6,2316.5,6.72184582]
[1726577549015,1.95048,2316.6,2316.5,3.6395]
[1726577549217,1.95048,2316.6,2316.5,3.2078]
[1726577549823,1.95048,2316.6,2316.5,3.6395]
[1726577550626,1.5188,2316.6,2316.5,3.6395]
[1726577551219,1.5188,2316.6,2316.5,6.3395]
[1726577552631,1.5188,2316.6,2316.5,7.46277408]
[1726577553015,1.5188,2316.6,2316.5,11.77957408]
[1726577553716,1.5188,2316.6,2316.5,10.6563]
[1726577555128,1.5188,2316.6,2316.5,7.46227063]
[1726577555626,1.5188,2316.6,2316.5,11.77907063]
[1726577556831,1.5188,2316.6,2316.5,7.46227063]
[1726577558219,1.5188,2316.6,2316.5,8.54153063]
[1726577558633,1.5188,2316.6,2316.5,12.85833063]
[1726577558830,1.5188,2316.6,2316.5,11.73556]
[1726577559524,0.7658,2316.6,2316.5,12.81482]
[1726577560528,5.23094,2317.2,2316.5,12.81482]
[1726577560529,4.152,2317.2,2317.1,0.43159]
[1726577560731,1.4441,2317.2,2317.1,4.21057]
[1726577560937,0.7373,2317.2,2317.1,19.10096357]
[1726577561332,0.7068,2317.6,2317.5,0.43152]
[1726577561535,1.1383,2317.6,2317.5,3.13152]
[1726577561729,0.7068,2317.6,2317.5,3.13152]
[1726577562138,3.63922,2318.1,2317.6,1.07874]
[1726577562333,0.7068,2318.0,2317.9,0.43144]
[1726577562540,1.13824,2318.0,2317.7,4.53128068]
[1726577562838,0.7068,2318.0,2317.9,2.7]
[1726577564434,1.4165,2318.0,2317.9,2.7]
[1726577564728,1.4165,2318.0,2317.9,3.13144]
[1726577565937,1.4165,2318.0,2317.9,7.44584]
[1726577566340,0.7097,2318.0,2317.9,7.44584]
[1726577566745,0.7045,2318.2,2318.1,0.4314]
[1726577567044,0.7045,2318.2,2318.1,3.1314]
[1726577567931,0.7045,2318.2,2318.1,7.445]
[1726577569150,0.7045,2318.2,2318.1,3.1314]
[1726577569356,0.7045,2318.2,2318.1,7.445]
[1726577570152,1.4826,2318.4,2318.1,7.445]
[1726577570153,1.4826,2318.4,2318.3,0.43137]
[1726577570362,1.4826,2318.4,2318.3,3.13137]
[1726577570548,3.2078,2318.9,2318.5,0.43132]
[1726577570753,1.50946,2318.8,2318.7,2.7]
[1726577570950,0.43129,2318.7,2318.6,2.7]
[1726577571354,0.43129,2318.7,2318.6,3.13131]
[1726577571549,0.43129,2318.7,2318.6,2.7]
[1726577571952,0.43129,2318.7,2318.6,7.44411]
[1726577572154,0.43129,2318.7,2318.6,2.7]
[1726577572360,0.43129,2318.7,2318.6,3.13131]
[1726577573055,0.43129,2318.7,2318.6,2.7]
[1726577573262,0.43129,2318.7,2318.6,3.13131]
[1726577574060,1.4135,2318.9,2318.6,2.7]
[1726577574249,1.84476,2318.9,2318.8,2.7]
[1726577575163,2.92291,2318.9,2318.8,2.7]
[1726577575362,0.43133,2318.5,2318.4,2.7]
[1726577575665,0.43133,2318.6,2318.4,3.13134]
[1726577575866,0.6905,2318.5,2318.4,3.13134]
[1726577576059,1.4412,2318.5,2318.4,3.13134]
[1726577576456,1.4412,2318.5,2318.4,2.7]
[1726577576764,1.4412,2318.5,2318.4,3.13135]
[1726577576959,1.4412,2318.5,2318.4,2.7]
[1726577577161,1.87253,2318.5,2318.4,2.7]
[1726577577364,0.43137,2318.3,2318.2,2.7]
[1726577577560,1.80461,2318.4,2318.2,2.7]
[1726577577768,0.43137,2318.3,2318.2,2.7]
[1726577581271,1.5098,2318.3,2318.2,2.7]
[1726577583067,0.43137,2318.3,2318.2,2.7]
[1726577584364,0.43137,2318.3,2318.2,3.13139]
[1726577584665,0.43137,2318.3,2318.2,2.7]
[1726577584857,1.80458,2318.4,2318.2,2.7]
[1726577584858,0.7262,2318.4,2318.2,2.7]
[1726577585265,0.7262,2318.4,2318.3,0.43137]
[1726577586969,0.7262,2318.4,2318.3,4.74497]
[1726577587169,0.7262,2318.4,2318.3,9.42344989]
[1726577587374,0.7262,2318.4,2318.3,10.50187989]
[1726577587870,0.4313,2318.7,2318.6,0.4313]
[1726577588059,0.4313,2318.7,2318.6,3.1313]
[1726577588464,2.1178,2318.8,2318.7,0.43129]
[1726577588465,2.54909,2318.8,2318.7,0.43129]
[1726577588870,2.1178,2318.8,2318.6,3.1313]
[1726577589070,0.43129,2318.7,2318.6,3.1313]
[1726577589265,2.1178,2318.8,2318.7,0.43129]
[1726577589266,2.54909,2318.8,2318.7,0.43129]
[1726577589568,0.43135,2318.4,2318.3,2.7]
[1726577589765,0.43135,2318.4,2318.3,3.13135]
[1726577590164,0.43135,2318.5,2318.4,0.43134]
[1726577590474,1.07824,2318.7,2318.5,0.43132]
[1726577590670,0.43133,2318.6,2318.5,0.43132]
[1726577590863,3.196,2318.8,2318.2,1.07847]
[1726577590864,0.43134,2318.5,2318.4,0.43134]
[1726577591469,0.43133,2318.6,2318.5,0.43132]
[1726577591668,0.43131,2318.7,2318.6,0.4313]
[1726577593173,3.196,2318.8,2318.7,0.43128]
[1726577593174,0.43127,2318.8,2318.7,0.43128]
[1726577593367,1.07805,2319.1,2318.8,0.43127]
[1726577593368,0.43127,2318.9,2318.8,0.43127]
[1726577593568,0.43125,2319.0,2318.9,0.43125]
[1726577593764,0.43125,2319.0,2318.9,3.13125]
[1726577594478,1.07801,2319.2,2318.9,2.7]
[1726577594869,0.43124,2319.0,2318.9,3.13124]
[1726577595573,0.43123,2319.1,2319.0,0.43123]
[1726577595774,0.43124,2319.0,2318.9,3.13124]
[1726577595978,0.43124,2319.0,2318.9,2.7]
[1726577598476,0.43124,2319.0,2318.8,0.43126]